fUSD/lending_fUSD_20250216
["ID","MTS","AMOUNT","RATE_DAILY","PERIOD"]
[353302032,1739743853718,-1016.8,0.00011369,2]
[353302033,1739743853728,-500.0,0.00011369,2]
[353302034,1739743853737,-1632.01,0.00011369,2]
[353302035,1739743853746,-740.54,0.00011369,2]
[353302036,1739743853755,-853.23,0.00011369,2]
[353302037,1739743853765,-543.84,0.00011369,2]
[353302038,1739743853775,-716.65,0.00011369,2]
[353302039,1739743853785,-500.0,0.00011369,2]
[353302040,1739743853794,-618.51,0.00011369,2]
[353302041,1739743853803,-599.54,0.00011369,2]
[353302042,1739743853812,-500.0,0.00011369,2]
[353302043,1739743853821,-791.59,0.00011369,2]
[353302044,1739743853830,-858.87,0.00011369,2]
[353302045,1739743853840,-1165.86,0.00011369,2]
[353302046,1739743853850,-500.0,0.00011369,2]
[353302047,1739743853859,-717.35,0.00011369,2]
[353302048,1739743853869,-500.0,0.00011369,2]
[353302049,1739743853878,-500.0,0.00011369,2]
[353302050,1739743853887,-807.84,0.00011369,2]
[353302051,1739743853897,-500.0,0.00011369,2]
[353302052,1739743853906,-894.1,0.00011369,2]
[353302053,1739743853915,-1443.39,0.00011369,2]
[353302054,1739743853924,-652.28,0.00011369,2]
[353302055,1739743853933,-573.79,0.00011369,2]
[353302056,1739743853944,-500.0,0.00011369,2]
[353302057,1739743853954,-500.0,0.00011369,2]
[353302058,1739743853964,-1116.66,0.00011369,2]
[353302059,1739743853973,-500.0,0.00011369,2]
[353302060,1739743853982,-500.0,0.00011369,2]
[353302061,1739743853992,-500.0,0.00011369,2]
[353302062,1739743854002,-500.0,0.00011369,2]
[353302063,1739743854011,-628.06,0.00011369,2]
[353302064,1739743854020,-3109.81673496,0.00011377,2]
[353302065,1739743854029,-500.0,0.00011401,2]
[353302066,1739743854038,-2000.0,0.00011401,2]
[353302067,1739743854048,-500.0,0.00011401,2]
[353302068,1739743854057,-200.0,0.00011401,2]
[353302069,1739743854066,-3109.81673496,0.00011442,2]
[353302070,1739743854075,-500.0,0.0001145,2]
[353302071,1739743854084,-500.0,0.0001145,2]
[353302072,1739743854093,-832.06,0.0001145,2]
[353302073,1739743854102,-500.0,0.0001145,2]
[353302074,1739743854112,-500.0,0.0001145,2]
[353302075,1739743854121,-505.69455162,0.0001145,2]
[353302076,1739743854130,-500.0,0.0001145,2]
[353302077,1739743854140,-500.0,0.0001145,2]
[353302078,1739743854149,-500.0,0.0001145,2]
[353302079,1739743854159,-500.0,0.0001145,2]
[353302080,1739743854168,-500.0,0.0001145,2]
[353302081,1739743854177,-500.0,0.0001145,2]
[353302082,1739743854187,-500.0,0.0001145,2]
[353302083,1739743854195,-500.0,0.0001145,2]
[353302084,1739743854205,-500.0,0.0001145,2]
[353302085,1739743854215,-500.0,0.0001145,2]
[353302086,1739743854225,-500.0,0.0001145,2]
[353302087,1739743854234,-500.0,0.0001145,2]
[353302088,1739743854243,-500.0,0.0001145,2]
[353302089,1739743854252,-203.0,0.0001145,2]
[353302090,1739743854261,-500.0,0.0001145,2]
[353302091,1739743854271,-519.55,0.0001145,2]
[353302092,1739743854280,-500.0,0.0001145,2]
[353302093,1739743854289,-545.36,0.0001145,2]
[353302094,1739743854299,-537.82,0.0001145,2]
[353302095,1739743854307,-634.77,0.0001145,2]
[353302096,1739743854317,-500.0,0.0001145,2]
[353302097,1739743854326,-428.619564,0.0001145,2]
[353302098,1739743854335,-500.0,0.0001145,2]
[353302099,1739743854344,-500.0,0.0001145,2]
[353302100,1739743854353,-605.506852,0.0001145,2]
[353302101,1739743854362,-500.0,0.0001145,2]
[353302102,1739743854373,-500.0,0.0001145,2]
[353302103,1739743854382,-500.0,0.0001145,2]
[353302104,1739743854391,-500.0,0.0001145,2]
[353302105,1739743854401,-500.0,0.0001145,2]
[353302106,1739743854410,-369.99,0.0001145,2]
[353302107,1739743854419,-885.61,0.0001145,2]
[353302108,1739743854429,-500.0,0.0001145,2]
[353302109,1739743854438,-500.0,0.0001145,2]
[353302110,1739743854449,-611.27,0.0001145,2]
[353302111,1739743854458,-500.0,0.0001145,2]
[353302112,1739743854468,-551.58,0.0001145,2]
[353302113,1739743854477,-500.0,0.0001145,2]
[353302114,1739743854486,-660.26,0.0001145,2]
[353302115,1739743854496,-593.26,0.0001145,2]
[353302116,1739743854505,-500.0,0.0001145,2]
[353302117,1739743854515,-553.94,0.0001145,2]
[353302118,1739743854527,-500.0,0.0001145,2]
[353302119,1739743854537,-513.81,0.0001145,2]
[353302120,1739743854546,-565.94,0.0001145,2]
[353302121,1739743854556,-500.0,0.0001145,2]
[353302122,1739743854566,-500.0,0.0001145,2]
[353302123,1739743854576,-500.0,0.0001145,2]
[353302124,1739743854586,-673.88,0.0001145,2]
[353302125,1739743854596,-776.79,0.0001145,2]
[353302126,1739743854606,-500.0,0.0001145,2]
[353302127,1739743854616,-500.0,0.0001145,2]
[353302128,1739743854626,-500.0,0.0001145,2]
[353302129,1739743854635,-500.0,0.0001145,2]
[353302130,1739743854645,-500.0,0.0001145,2]
[353302131,1739743854654,-160.62,0.0001145,2]
[353302132,1739743854664,-603.97,0.0001145,2]
[353302133,1739743854673,-662.07,0.0001145,2]
[353302134,1739743854682,-500.0,0.0001145,2]
[353302135,1739743854691,-500.0,0.0001145,2]
[353302136,1739743854701,-584.92,0.0001145,2]
[353302137,1739743854710,-500.0,0.0001145,2]
[353302138,1739743854720,-500.0,0.0001145,2]
[353302139,1739743854730,-500.0,0.0001145,2]
[353302140,1739743854739,-709.16,0.0001145,2]
[353302141,1739743854749,-1084.76,0.0001145,2]
[353302142,1739743854759,-500.0,0.0001145,2]
[353302143,1739743854769,-500.0,0.0001145,2]
[353302144,1739743854779,-862.95,0.0001145,2]
[353302145,1739743854788,-500.0,0.0001145,2]
[353302146,1739743854798,-567.88,0.0001145,2]
[353302147,1739743854808,-2109.33,0.0001145,2]
[353302148,1739743854817,-659.1,0.0001145,2]
[353302149,1739743854827,-500.0,0.0001145,2]
[353302150,1739743854837,-796.43,0.0001145,2]
[353302151,1739743854847,-500.0,0.0001145,2]
[353302152,1739743854857,-1070.81,0.0001145,2]
[353302153,1739743854866,-676.0,0.0001145,2]
[353302154,1739743854876,-1331.97,0.0001145,2]
[353302155,1739743854886,-500.0,0.0001145,2]
[353302156,1739743854895,-500.0,0.0001145,2]
[353302157,1739743854905,-955.73,0.0001145,2]
[353302158,1739743854915,-500.0,0.0001145,2]
[353302159,1739743854925,-1388.19,0.0001145,2]
[353302160,1739743854934,-3526.87,0.0001145,2]
[353302161,1739743854944,-793.3,0.0001145,2]
[353302162,1739743854954,-839.11,0.0001145,2]
[353302163,1739743854963,-632.97,0.0001145,2]
[353302164,1739743854972,-928.41,0.0001145,2]
[353302165,1739743854982,-947.29,0.0001145,2]
[353302166,1739743854991,-500.0,0.0001145,2]
[353302167,1739743855000,-604.69,0.0001145,2]
[353302168,1739743855010,-500.0,0.0001145,2]
[353302169,1739743855019,-500.0,0.0001145,2]
[353302170,1739743855029,-500.0,0.0001145,2]
[353302171,1739743855038,-1004.66,0.0001145,2]
[353302172,1739743855048,-930.09,0.0001145,2]
[353302173,1739743855057,-358.39233381,0.0001145,2]
[353302174,1739743855101,-732.24766619,0.0001145,2]
[353302175,1739743855111,-506.83,0.0001145,2]
[353302176,1739743855120,-500.0,0.0001145,2]
[353302177,1739743855130,-333.84,0.0001145,2]
[353302178,1739743855139,-552.02,0.0001145,2]
[353302179,1739743855149,-3080.91,0.0001145,2]
[353302180,1739743855159,-500.0,0.0001145,2]
[353302181,1739743855171,-557.45,0.0001145,2]
[353302182,1739743855181,-836.96,0.0001145,2]
[353302183,1739743855191,-609.6,0.0001145,2]
[353302184,1739743855202,-473.14,0.0001145,2]
[353302185,1739743855211,-500.0,0.0001145,2]
[353302186,1739743855221,-500.0,0.0001145,2]
[353302187,1739743855231,-788.37,0.0001145,2]
[353302188,1739743855240,-500.0,0.0001145,2]
[353302189,1739743855249,-535.91,0.0001145,2]
[353302190,1739743855259,-404.22,0.0001145,2]
[353302191,1739743855268,-1029.76,0.0001145,2]
[353302192,1739743855278,-500.0,0.0001145,2]
[353302193,1739743855288,-757.55,0.0001145,2]
[353302194,1739743855297,-1207.77,0.0001145,2]
[353302195,1739743855307,-993.67,0.0001145,2]
[353302196,1739743855317,-500.0,0.0001145,2]
[353302197,1739743855326,-883.43,0.0001145,2]
[353302198,1739743855336,-1193.44,0.0001145,2]
[353302199,1739743855345,-1120.23,0.0001145,2]
[353302200,1739743855355,-1029.53,0.0001145,2]
[353302201,1739743855364,-500.0,0.0001145,2]
[353302202,1739743855374,-745.24,0.0001145,2]
[353302203,1739743855384,-2299.91,0.0001145,2]
[353302204,1739743855393,-500.0,0.0001145,2]
[353302205,1739743855402,-1170.51,0.0001145,2]
[353302206,1739743855412,-500.0,0.0001145,2]
[353302207,1739743855421,-500.0,0.0001145,2]
[353302208,1739743855431,-1124.91,0.0001145,2]
[353302209,1739743855440,-500.0,0.0001145,2]
[353302210,1739743855451,-500.0,0.0001145,2]
[353302211,1739743855461,-632.96,0.0001145,2]
[353302212,1739743855470,-1572.85,0.0001145,2]
[353302213,1739743855480,-1256.66,0.0001145,2]
[353302214,1739743855490,-500.0,0.0001145,2]
[353302215,1739743855499,-500.0,0.0001145,2]
[353302216,1739743855508,-500.0,0.0001145,2]
[353302217,1739743855517,-526.13,0.0001145,2]
[353302218,1739743855530,-1051.04,0.0001145,2]
[353302219,1739743855540,-327.18,0.0001145,2]
[353302220,1739743855551,-916.19,0.0001145,2]
[353302221,1739743855560,-1373.28,0.0001145,2]
[353302222,1739743855571,-500.0,0.0001145,2]
[353302223,1739743855580,-670.74,0.0001145,2]
[353302224,1739743855591,-3030.67,0.0001145,2]
[353302225,1739743855601,-558.69,0.0001145,2]
[353302226,1739743855612,-1287.49,0.0001145,2]
[353302227,1739743855622,-2285.4,0.0001145,2]
[353302228,1739743855632,-962.38,0.0001145,2]
[353302229,1739743855642,-500.0,0.0001145,2]
[353302230,1739743855652,-919.68,0.0001145,2]
[353302231,1739743855663,-340.8,0.0001145,2]
[353302232,1739743855672,-500.0,0.0001145,2]
[353302233,1739743855682,-500.0,0.0001145,2]
[353302234,1739743855692,-1272.04,0.0001145,2]
[353302235,1739743855703,-500.0,0.0001145,2]
[353302236,1739743855714,-1620.04,0.0001145,2]
[353302237,1739743855723,-626.14,0.0001145,2]
[353302238,1739743855733,-500.0,0.0001145,2]
[353302239,1739743855743,-500.0,0.00011451,2]
[353302240,1739743855753,-755.41,0.00011451,2]
[353302241,1739743855763,-1036.75,0.00011451,2]
[353302242,1739743855773,-1298.67,0.00011451,2]
[353302243,1739743855783,-1000.0,0.00011451,2]
[353302244,1739743855792,-1172.76,0.00011451,2]
[353302245,1739743855802,-500.0,0.00011451,2]
[353302246,1739743855812,-500.0,0.00011451,2]
[353302247,1739743855821,-1016.8,0.00011451,2]
[353302248,1739743855830,-716.65,0.00011451,2]
[353302249,1739743855840,-500.0,0.00011452,2]
[353302250,1739743855849,-500.0,0.00011452,2]
[353302251,1739743855859,-459.1,0.00011452,2]
[353302252,1739743855870,-500.0,0.00011452,2]
[353302253,1739743855879,-500.0,0.00011452,2]
[353302254,1739743855889,-500.0,0.00011452,2]
[353302255,1739743855899,-500.0,0.00011452,2]
[353302256,1739743855909,-500.0,0.00011452,2]
[353302257,1739743855918,-253.16,0.00011452,2]
[353302258,1739743855927,-500.0,0.00011452,2]
[353302259,1739743855937,-500.0,0.00011452,2]
[353302260,1739743855947,-500.0,0.00011452,2]
[353302261,1739743855958,-714.06,0.00011452,2]
[353302262,1739743855967,-500.0,0.00011452,2]
[353302263,1739743855977,-500.0,0.00011452,2]
[353302264,1739743856143,-500.0,0.00011452,2]
[353302265,1739743856160,-500.0,0.00011452,2]
[353302266,1739743856170,-728.13,0.00011452,2]
[353302267,1739743856179,-500.0,0.00011452,2]
[353302268,1739743856189,-583.4,0.00011452,2]
[353302269,1739743856199,-500.0,0.00011452,2]
[353302270,1739743856209,-500.0,0.00011452,2]
[353302271,1739743856218,-500.0,0.00011452,2]
[353302272,1739743856227,-500.0,0.00011452,2]
[353302273,1739743856237,-500.0,0.00011452,2]
[353302274,1739743856246,-500.0,0.00011452,2]
[353302275,1739743856255,-500.0,0.00011452,2]
[353302276,1739743856265,-500.0,0.00011452,2]
[353302277,1739743856274,-500.0,0.00011452,2]
[353302278,1739743856285,-500.0,0.00011452,2]
[353302279,1739743856294,-500.0,0.00011452,2]
[353302280,1739743856304,-500.0,0.00011452,2]
[353302281,1739743856314,-500.0,0.00011452,2]
[353302282,1739743856323,-500.0,0.00011452,2]
[353302283,1739743856333,-500.0,0.00011452,2]
[353302284,1739743856342,-569.07,0.00011452,2]
[353302285,1739743856352,-639.31,0.00011452,2]
[353302286,1739743856362,-500.0,0.00011452,2]
[353302287,1739743856371,-500.0,0.00011452,2]
[353302288,1739743856381,-500.0,0.00011452,2]
[353302289,1739743856391,-500.0,0.00011452,2]
[353302290,1739743856400,-500.0,0.00011452,2]
[353302291,1739743856409,-500.0,0.00011452,2]
[353302292,1739743856419,-746.52,0.00011452,2]
[353302293,1739743856429,-500.0,0.00011452,2]
[353302294,1739743856438,-620.87,0.00011452,2]
[353302295,1739743856448,-527.75,0.00011452,2]
[353302296,1739743856457,-703.13,0.00011452,2]
[353302297,1739743856467,-758.03,0.00011452,2]
[353302298,1739743856476,-500.0,0.00011452,2]
[353302299,1739743856486,-500.0,0.00011452,2]
[353302300,1739743856495,-500.0,0.00011452,2]
[353302301,1739743856504,-500.0,0.00011452,2]
[353302302,1739743856513,-500.0,0.00011452,2]
[353302303,1739743856523,-500.0,0.00011452,2]
[353302304,1739743856535,-523.85,0.00011452,2]
[353302305,1739743856545,-500.0,0.00011452,2]
[353302306,1739743856554,-500.0,0.00011452,2]
[353302307,1739743856563,-536.09,0.00011452,2]
[353302308,1739743856573,-500.0,0.00011452,2]
[353302309,1739743856582,-500.0,0.00011452,2]
[353302310,1739743856592,-640.13,0.00011452,2]
[353302311,1739743856603,-828.92,0.00011452,2]
[353302312,1739743856613,-657.03,0.00011452,2]
[353302313,1739743856622,-1040.32,0.00011452,2]
[353302314,1739743856632,-500.0,0.00011452,2]
[353302315,1739743856642,-881.8,0.00011452,2]
[353302316,1739743856651,-500.0,0.00011452,2]
[353302317,1739743856660,-1378.98,0.00011452,2]
[353302318,1739743856670,-537.54,0.00011452,2]
[353302319,1739743856679,-500.0,0.00011452,2]
[353302320,1739743856688,-1632.01,0.00011452,2]
[353302321,1739743856698,-740.54,0.00011452,2]
[353302322,1739743856707,-853.23,0.00011452,2]
[353302323,1739743856717,-543.84,0.00011452,2]
[353302324,1739743856727,-500.0,0.00011452,2]
[353302325,1739743856737,-618.51,0.00011452,2]
[353302326,1739743856746,-599.54,0.00011452,2]
[353302327,1739743856756,-500.0,0.00011452,2]
[353302328,1739743856765,-791.59,0.00011452,2]
[353302329,1739743856775,-858.87,0.00011452,2]
[353302330,1739743856784,-1165.86,0.00011452,2]
[353302331,1739743856794,-500.0,0.00011452,2]
[353302332,1739743856804,-717.35,0.00011452,2]
[353302333,1739743856814,-500.0,0.00011452,2]
[353302334,1739743856823,-500.0,0.00011452,2]
[353302335,1739743856833,-807.84,0.00011452,2]
[353302336,1739743856843,-500.0,0.00011452,2]
[353302337,1739743856852,-894.1,0.00011452,2]
[353302338,1739743856862,-1443.39,0.00011452,2]
[353302339,1739743856871,-652.28,0.00011452,2]
[353302340,1739743856880,-573.79,0.00011452,2]
[353302341,1739743856891,-500.0,0.00011452,2]
[353302342,1739743856900,-365.06,0.00011452,2]
[353302343,1739743856910,-1116.66,0.00011452,2]
[353302344,1739743856919,-500.0,0.00011452,2]
[353302345,1739743856929,-500.0,0.00011452,2]
[353302346,1739743856939,-500.0,0.00011452,2]
[353302347,1739743856948,-500.0,0.00011452,2]
[353302348,1739743856958,-628.06,0.00011452,2]
[353302349,1739743856968,-669.4643434,0.00011464,2]
[353302350,1739743856977,-3109.81673496,0.00011506,2]
[353302351,1739743856986,-1893.67,0.00011507,2]
[353302352,1739743856996,-2447.18,0.00011531,2]
[353302353,1739743857005,-500.0,0.00011532,2]
[353302354,1739743857015,-500.0,0.00011532,2]
[353302355,1739743857024,-832.06,0.00011532,2]
[353302356,1739743857033,-500.0,0.00011532,2]
[353302357,1739743857042,-500.0,0.00011532,2]
[353302358,1739743857051,-500.0,0.00011532,2]
[353302359,1739743857060,-500.0,0.00011532,2]
[353302360,1739743857069,-500.0,0.00011532,2]
[353302361,1739743857079,-500.0,0.00011532,2]
[353302362,1739743857088,-500.0,0.00011532,2]
[353302363,1739743857097,-500.0,0.00011532,2]
[353302364,1739743857107,-500.0,0.00011532,2]
[353302365,1739743857117,-500.0,0.00011532,2]
[353302366,1739743857126,-500.0,0.00011532,2]
[353302367,1739743857136,-500.0,0.00011532,2]
[353302368,1739743857145,-500.0,0.00011532,2]
[353302369,1739743857156,-500.0,0.00011532,2]
[353302370,1739743857166,-500.0,0.00011532,2]
[353302371,1739743857176,-500.0,0.00011532,2]
[353302372,1739743857185,-519.55,0.00011532,2]
[353302373,1739743857195,-500.0,0.00011532,2]
[353302374,1739743857204,-545.36,0.00011532,2]
[353302375,1739743857214,-537.82,0.00011532,2]
[353302376,1739743857223,-500.0,0.00011532,2]
[353302377,1739743857233,-428.619564,0.00011532,2]
[353302378,1739743857242,-500.0,0.00011532,2]
[353302379,1739743857251,-500.0,0.00011532,2]
[353302380,1739743857261,-605.506852,0.00011532,2]
[353302381,1739743857270,-380.8398463,0.00011532,2]
[353302382,1739743857279,-500.0,0.00011532,2]
[353302383,1739743857289,-500.0,0.00011532,2]
[353302384,1739743857299,-500.0,0.00011532,2]
[353302385,1739743857308,-454.54,0.00011532,2]
[353302386,1739743857317,-885.61,0.00011532,2]
[353302387,1739743857327,-500.0,0.00011532,2]
[353302388,1739743857335,-500.0,0.00011532,2]
[353302389,1739743857344,-611.27,0.00011532,2]
[353302390,1739743857354,-500.0,0.00011532,2]
[353302391,1739743857364,-551.58,0.00011532,2]
[353302392,1739743857373,-500.06,0.00011532,2]
[353302393,1739743857383,-660.26,0.00011532,2]
[353302394,1739743857393,-593.26,0.00011532,2]
[353302395,1739743857402,-500.0,0.00011532,2]
[353302396,1739743857411,-553.94,0.00011532,2]
[353302397,1739743857420,-500.0,0.00011532,2]
[353302398,1739743857429,-565.94,0.00011532,2]
[353302399,1739743857439,-500.0,0.00011532,2]
[353302400,1739743857448,-500.0,0.00011532,2]
[353302401,1739743857458,-500.0,0.00011532,2]
[353302402,1739743857467,-673.88,0.00011532,2]
[353302403,1739743857476,-776.79,0.00011532,2]
[353302404,1739743857485,-432.71,0.00011532,2]
[353302405,1739743857495,-500.0,0.00011532,2]
[353302406,1739743857504,-500.0,0.00011532,2]
[353302407,1739743857513,-500.0,0.00011532,2]
[353302408,1739743857523,-500.0,0.00011532,2]
[353302409,1739743857536,-603.97,0.00011532,2]
[353302410,1739743857545,-662.07,0.00011532,2]
[353302411,1739743857554,-500.0,0.00011532,2]
[353302412,1739743857564,-500.0,0.00011532,2]
[353302413,1739743857574,-584.92,0.00011532,2]
[353302414,1739743857583,-500.0,0.00011532,2]
[353302415,1739743857592,-500.0,0.00011532,2]
[353302416,1739743857601,-500.0,0.00011532,2]
[353302417,1739743857611,-709.16,0.00011532,2]
[353302418,1739743857621,-1084.76,0.00011532,2]
[353302419,1739743857630,-500.0,0.00011532,2]
[353302420,1739743857639,-500.0,0.00011532,2]
[353302421,1739743857648,-862.95,0.00011532,2]
[353302422,1739743857657,-500.0,0.00011532,2]
[353302423,1739743857667,-2109.33,0.00011532,2]
[353302424,1739743857676,-659.1,0.00011532,2]
[353302425,1739743857686,-500.0,0.00011532,2]
[353302426,1739743857695,-796.43,0.00011532,2]
[353302427,1739743857704,-500.0,0.00011532,2]
[353302428,1739743857714,-1070.81,0.00011532,2]
[353302429,1739743857723,-676.0,0.00011532,2]
[353302430,1739743857732,-1331.97,0.00011532,2]
[353302431,1739743857741,-531.8,0.00011532,2]
[353302432,1739743857751,-500.0,0.00011532,2]
[353302433,1739743857762,-955.73,0.00011532,2]
[353302434,1739743857771,-500.0,0.00011532,2]
[353302435,1739743857780,-1388.19,0.00011532,2]
[353302436,1739743857790,-3526.87,0.00011532,2]
[353302437,1739743857799,-793.3,0.00011532,2]
[353302438,1739743857808,-839.11,0.00011532,2]
[353302439,1739743857817,-632.97,0.00011532,2]
[353302440,1739743857827,-928.41,0.00011532,2]
[353302441,1739743857836,-947.29,0.00011532,2]
[353302442,1739743857845,-500.0,0.00011532,2]
[353302443,1739743857854,-604.69,0.00011532,2]
[353302444,1739743857863,-197.66,0.00011532,2]
[353302445,1739743857872,-500.0,0.00011532,2]
[353302446,1739743857881,-491.73,0.00011532,2]
[353302447,1739743857891,-1004.66,0.00011532,2]
[353302448,1739743857900,-930.09,0.00011532,2]
[353302449,1739743857910,-1090.64,0.00011532,2]
[353302450,1739743857919,-506.83,0.00011532,2]
[353302451,1739743857928,-500.0,0.00011532,2]
[353302452,1739743857937,-552.02,0.00011532,2]
[353302453,1739743857946,-3080.91,0.00011532,2]
[353302454,1739743857956,-594.74,0.00011532,2]
[353302455,1739743857965,-557.45,0.00011532,2]
[353302456,1739743857975,-836.96,0.00011532,2]
[353302457,1739743857984,-609.6,0.00011532,2]
[353302458,1739743857993,-500.0,0.00011532,2]
[353302459,1739743858002,-500.0,0.00011532,2]
[353302460,1739743858012,-788.37,0.00011532,2]
[353302461,1739743858021,-500.0,0.00011532,2]
[353302462,1739743858031,-535.91,0.00011532,2]
[353302463,1739743858039,-1029.76,0.00011532,2]
[353302464,1739743858049,-500.0,0.00011532,2]
[353302465,1739743858058,-757.55,0.00011532,2]
[353302466,1739743858068,-1207.77,0.00011532,2]
[353302467,1739743858078,-993.67,0.00011532,2]
[353302468,1739743858087,-500.0,0.00011532,2]
[353302469,1739743858097,-883.43,0.00011532,2]
[353302470,1739743858106,-1193.44,0.00011532,2]
[353302471,1739743858116,-1120.23,0.00011532,2]
[353302472,1739743858125,-1029.53,0.00011532,2]
[353302473,1739743858134,-500.0,0.00011532,2]
[353302474,1739743858143,-745.24,0.00011532,2]
[353302475,1739743858153,-2299.91,0.00011532,2]
[353302476,1739743858163,-500.0,0.00011532,2]
[353302477,1739743858173,-1170.51,0.00011532,2]
[353302478,1739743858182,-500.0,0.00011532,2]
[353302479,1739743858191,-500.0,0.00011532,2]
[353302480,1739743858201,-1124.91,0.00011532,2]
[353302481,1739743858210,-500.0,0.00011532,2]
[353302482,1739743858220,-500.0,0.00011532,2]
[353302483,1739743858229,-632.96,0.00011532,2]
[353302484,1739743858238,-1572.85,0.00011532,2]
[353302485,1739743858247,-1256.66,0.00011532,2]
[353302486,1739743858256,-500.0,0.00011532,2]
[353302487,1739743858266,-500.0,0.00011532,2]
[353302488,1739743858276,-500.0,0.00011532,2]
[353302489,1739743858285,-526.13,0.00011532,2]
[353302490,1739743858295,-1051.04,0.00011532,2]
[353302491,1739743858304,-916.19,0.00011532,2]
[353302492,1739743858313,-1373.28,0.00011532,2]
[353302493,1739743858322,-500.0,0.00011532,2]
[353302494,1739743858332,-670.74,0.00011532,2]
[353302495,1739743858341,-3030.67,0.00011532,2]
[353302496,1739743858351,-558.69,0.00011532,2]
[353302497,1739743858360,-1287.49,0.00011532,2]
[353302498,1739743858369,-2285.4,0.00011532,2]
[353302499,1739743858379,-962.38,0.00011532,2]
[353302500,1739743858389,-500.0,0.00011532,2]
[353302501,1739743858399,-919.68,0.00011532,2]
[353302502,1739743858410,-500.0,0.00011532,2]
[353302503,1739743858420,-500.0,0.00011532,2]
[353302504,1739743858430,-1272.04,0.00011532,2]
[353302505,1739743858440,-500.0,0.00011532,2]
[353302506,1739743858450,-1620.04,0.00011532,2]
[353302507,1739743858461,-626.14,0.00011532,2]
[353302508,1739743858470,-500.0,0.00011533,2]
[353302509,1739743858480,-755.41,0.00011533,2]
[353302510,1739743858489,-1036.75,0.00011533,2]
[353302511,1739743858500,-1298.67,0.00011533,2]
[353302512,1739743858510,-1000.0,0.00011533,2]
[353302513,1739743858564,-1172.76,0.00011533,2]
[353302514,1739743858575,-500.0,0.00011533,2]
[353302515,1739743858584,-500.0,0.00011533,2]
[353302516,1739743858593,-1016.8,0.00011533,2]
[353302517,1739743858603,-716.65,0.00011533,2]
[353302518,1739743858614,-608.44,0.00011533,2]
[353302519,1739743858625,-151.0,0.00011534,2]
[353302520,1739743858634,-500.0,0.00011534,2]
[353302521,1739743858643,-500.0,0.00011534,2]
[353302522,1739743858653,-500.0,0.00011534,2]
[353302523,1739743858663,-500.0,0.00011534,2]
[353302524,1739743858673,-229.35,0.00011534,2]
[353302525,1739743858682,-500.0,0.00011534,2]
[353302526,1739743858691,-500.0,0.00011534,2]
[353302527,1739743858701,-500.0,0.00011534,2]
[353302528,1739743858710,-500.0,0.00011534,2]
[353302529,1739743858720,-500.0,0.00011534,2]
[353302530,1739743858729,-714.06,0.00011534,2]
[353302531,1739743858738,-500.0,0.00011534,2]